fUSD/lending_fUSD_20250610
["ID","MTS","AMOUNT","RATE_DAILY","PERIOD"]
[365321832,1749599459022,-875.84,0.00018904,2]
[365321833,1749599459032,-153.2,0.00018904,2]
[365321834,1749599459041,-1266.74,0.00018904,2]
[365321835,1749599459050,-2061.240596,0.00018904,2]
[365321836,1749599459060,-2061.240596,0.00018904,2]
[365321837,1749599459069,-490.0,0.00018904,2]
[365321838,1749599459079,-490.0,0.00018904,2]
[365321839,1749599459088,-500.0,0.00018999,2]
[365321840,1749599459098,-500.0,0.00018999,2]
[365321841,1749599459109,-32976.2230983,0.00019,2]
[365321842,1749599459119,-1969.5,0.00019,2]
[365321843,1749599459128,-1969.5,0.00019,2]
[365321844,1749599459138,-36875.03,0.00019,2]
[365321845,1749599459147,-1969.5,0.00019,2]
[365321846,1749599459157,-36875.03,0.00019,2]
[365321847,1749599459166,-650.25412844,0.00019,2]
[365321848,1749599459175,-200.0,0.00019,2]
[365321849,1749599459185,-200.0,0.00019,2]
[365321850,1749599459194,-321.47231,0.00019,2]
[365321851,1749599459203,-321.47231,0.00019,2]
[365321852,1749599459213,-151.0,0.00019,2]
[365321853,1749599459222,-151.0,0.00019,2]
[365321854,1749599459232,-151.0,0.00019,2]
[365321855,1749599459241,-151.0,0.00019,2]
[365321856,1749599459252,-151.0,0.00019,2]
[365321857,1749599459261,-151.0,0.00019,2]
[365321858,1749599459271,-151.0,0.00019,2]
[365321859,1749599459281,-151.0,0.00019,2]
[365321860,1749599459290,-3675.45707271,0.00019,2]
[365321861,1749599459299,-151.0,0.00019,2]
[365321862,1749599459308,-151.0,0.00019,2]
[365321863,1749599459318,-157.125231,0.00019,2]
[365321864,1749599459327,-2024.153936,0.00019,2]
[365321865,1749599459337,-2024.153936,0.00019,2]
[365321866,1749599459346,-158.674,0.00019,2]
[365321867,1749599459356,-151.0,0.00019,2]
[365321868,1749599459365,-151.0,0.00019,2]
[365321869,1749599459375,-212.832839,0.00019,2]
[365321870,1749599459385,-212.832839,0.00019,2]
[365321871,1749599459395,-250.0,0.00019,2]
[365321872,1749599459406,-151.0,0.00019,2]
[365321873,1749599459416,-265.989115,0.00019,2]
[365321874,1749599459426,-265.989115,0.00019,2]
[365321875,1749599459435,-4722.240875,0.00019,2]
[365321876,1749599459446,-4722.240875,0.00019,2]
[365321877,1749599459455,-4722.240875,0.00019,2]
[365321878,1749599459465,-4722.240882,0.00019,2]
[365321879,1749599459476,-216.365728,0.00019,2]
[365321880,1749599459486,-223.536047,0.00019,2]
[365321881,1749599459495,-223.536047,0.00019,2]
[365321882,1749599459505,-2061.240596,0.00019,2]
[365321883,1749599459515,-2061.240596,0.00019,2]
[365321884,1749599459525,-490.0,0.00019068,2]
[365321885,1749599459535,-662.48,0.00019068,2]
[365321886,1749599459545,-898.58,0.00019068,2]
[365321887,1749599459554,-1036.73,0.00019068,2]
[365321888,1749599459564,-875.84,0.00019068,2]
[365321889,1749599459573,-1266.74,0.00019068,2]
[365321890,1749599459583,-490.0,0.00019068,2]
[365321891,1749599459592,-490.0,0.00019068,2]
[365321892,1749599459601,-996.7401,0.00019099,2]
[365321893,1749599459610,-1200.0,0.000191,6]
[365321894,1749599459619,-415.71991719,0.00019178,2]
[365321895,1749599459628,-500.0,0.00019178,2]
[365321896,1749599459638,-500.0,0.00019178,2]
[365321897,1749599459647,-501.90193731,0.00019178,2]
[365321898,1749599459659,-500.0,0.00019178,2]
[365321899,1749599459669,-500.0,0.00019178,2]
[365321900,1749599459678,-500.0,0.00019178,2]
[365321901,1749599459687,-500.0,0.00019178,2]
[365321902,1749599459696,-500.0,0.00019178,2]
[365321903,1749599459705,-500.0,0.00019178,2]
[365321904,1749599459715,-500.0,0.00019178,2]
[365321905,1749599459724,-500.0,0.00019178,2]
[365321906,1749599459733,-500.0,0.00019178,2]
[365321907,1749599459742,-500.0,0.00019178,2]
[365321908,1749599459751,-500.0,0.00019178,2]
[365321909,1749599459761,-500.0,0.00019178,2]
[365321910,1749599459770,-500.0,0.00019178,2]
[365321911,1749599459779,-500.0,0.00019178,2]
[365321912,1749599459788,-151.0,0.00019178,2]
[365321913,1749599459797,-210.62,0.00019178,2]
[365321914,1749599459806,-223.536047,0.00019181,2]
[365321915,1749599459816,-223.536039,0.00019181,2]
[365321916,1749599459825,-7353.54359579,0.00019182,2]
[365321917,1749599459834,-200.0,0.0001919,2]
[365321918,1749599459843,-200.0,0.0001919,2]
[365321919,1749599459852,-1600.0,0.000192,7]
[365321920,1749599459862,-1435.41,0.000192,2]
[365321921,1749599459872,-508.02413988,0.00019205,2]
[365321922,1749599459882,-500.0,0.00019205,2]
[365321923,1749599459892,-490.0,0.00019232,2]
[365321924,1749599459901,-265.989115,0.00019232,2]
[365321925,1749599459913,-265.989115,0.00019232,2]
[365321926,1749599459923,-662.48,0.00019232,2]
[365321927,1749599459931,-898.58,0.00019232,2]
[365321928,1749599459941,-1036.73,0.00019232,2]
[365321929,1749599459954,-875.84,0.00019232,2]
[365321930,1749599459964,-1266.74,0.00019232,2]
[365321931,1749599459973,-2061.240596,0.00019232,2]
[365321932,1749599459983,-2061.240596,0.00019232,2]
[365321933,1749599459993,-490.0,0.00019232,2]
[365321934,1749599460002,-490.0,0.00019232,2]
[365321935,1749599460012,-200.0,0.00019272,6]
[365321936,1749599460022,-2000.0,0.000193,7]
[365321937,1749599460032,-20000.0,0.00019342,2]
[365321938,1749599460042,-154.103675,0.00019342,2]
[365321939,1749599460056,-151.0,0.00019342,2]
[365321940,1749599460066,-151.0,0.00019342,2]
[365321941,1749599460077,-151.0,0.00019342,2]
[365321942,1749599460087,-151.0,0.00019342,2]
[365321943,1749599460097,-151.0,0.00019342,2]
[365321944,1749599460107,-151.0,0.00019342,2]
[365321945,1749599460118,-151.0,0.00019342,2]
[365321946,1749599460129,-212.832839,0.00019342,2]
[365321947,1749599460139,-212.832839,0.00019342,2]
[365321948,1749599460148,-151.0,0.00019342,2]
[365321949,1749599460159,-152.0,0.00019347,4]
[365321950,1749599460168,-160.8346859,0.0001935,2]
[365321951,1749599460177,-151.0,0.00019351,2]
[365321952,1749599460187,-151.0,0.00019351,2]
[365321953,1749599460196,-151.0,0.00019351,2]
[365321954,1749599460206,-151.0,0.00019351,2]
[365321955,1749599460215,-151.0,0.00019351,2]
[365321956,1749599460225,-197.567333,0.00019351,2]
[365321957,1749599460234,-329.233099,0.00019351,2]
[365321958,1749599460244,-329.233099,0.00019351,2]
[365321959,1749599460253,-151.0,0.00019351,2]
[365321960,1749599460262,-151.0,0.00019351,2]
[365321961,1749599460271,-151.0,0.00019351,2]
[365321962,1749599460281,-151.0,0.00019351,2]
[365321963,1749599460290,-151.0,0.00019351,2]
[365321964,1749599460300,-180.744802,0.00019351,2]
[365321965,1749599460309,-1000.0,0.00019368,2]
[365321966,1749599460319,-200.0,0.00019382,2]
[365321967,1749599460329,-490.0,0.00019397,2]
[365321968,1749599460338,-662.48,0.00019397,2]
[365321969,1749599460348,-898.58,0.00019397,2]
[365321970,1749599460358,-1036.73,0.00019397,2]
[365321971,1749599460367,-875.84,0.00019397,2]
[365321972,1749599460376,-1266.74,0.00019397,2]
[365321973,1749599460385,-490.0,0.00019397,2]
[365321974,1749599460394,-490.0,0.00019397,2]
[365321975,1749599460406,-500.0,0.00019399,2]
[365321976,1749599460415,-53574.99999998,0.000194,2]
[365321977,1749599460425,-151.0,0.000194,2]
[365321978,1749599460435,-321.47231,0.000194,2]
[365321979,1749599460445,-321.47231,0.000194,2]
[365321980,1749599460454,-153.035096,0.000194,2]
[365321981,1749599460464,-151.0,0.000194,2]
[365321982,1749599460474,-151.0,0.000194,2]
[365321983,1749599460484,-2024.153936,0.000194,2]
[365321984,1749599460494,-2024.153936,0.000194,2]
[365321985,1749599460504,-151.745176,0.000194,2]
[365321986,1749599460514,-151.0,0.000194,2]
[365321987,1749599460523,-212.832839,0.000194,2]
[365321988,1749599460533,-212.832839,0.000194,2]
[365321989,1749599460542,-151.0,0.000194,2]
[365321990,1749599460552,-265.989115,0.000194,2]
[365321991,1749599460561,-265.989115,0.000194,2]
[365321992,1749599460571,-400.0,0.000194,7]
[365321993,1749599460580,-2061.240596,0.000194,2]
[365321994,1749599460590,-2061.240596,0.000194,2]
[365321995,1749599460599,-157.77,0.00019401,2]
[365321996,1749599460609,-151.0,0.00019488,2]
[365321997,1749599460619,-151.0,0.00019488,2]
[365321998,1749599460628,-151.0,0.00019488,2]
[365321999,1749599460637,-38517.55369668,0.000195,2]
[365322000,1749599460647,-151.0,0.000195,2]
[365322001,1749599460658,-151.0,0.000195,2]
[365322002,1749599460667,-298.794425,0.000195,2]
[365322003,1749599460677,-329.233099,0.000195,2]
[365322004,1749599460687,-329.233099,0.000195,2]
[365322005,1749599460696,-151.0,0.000195,2]
[365322006,1749599460706,-151.0,0.000195,2]
[365322007,1749599460716,-151.0,0.000195,2]
[365322008,1749599460726,-151.0,0.000195,2]
[365322009,1749599460735,-292.193672,0.000195,2]
[365322010,1749599460744,-212.832839,0.000195,2]
[365322011,1749599460753,-212.832839,0.000195,2]
[365322012,1749599460762,-151.0,0.000195,2]
[365322013,1749599460771,-151.0,0.000195,2]
[365322014,1749599460780,-151.0,0.000195,2]
[365322015,1749599460790,-400.0,0.000195,7]
[365322016,1749599460799,-1435.41,0.000195,2]
[365322017,1749599460809,-795.744582,0.00019502,2]
[365322018,1749599460819,-7353.54359579,0.00019541,2]
[365322019,1749599460828,-490.0,0.00019561,2]
[365322020,1749599460837,-662.48,0.00019561,2]
[365322021,1749599460847,-898.58,0.00019561,2]
[365322022,1749599460856,-1036.73,0.00019561,2]
[365322023,1749599460865,-875.84,0.00019561,2]
[365322024,1749599460875,-1266.74,0.00019561,2]
[365322025,1749599460884,-490.0,0.00019561,2]
[365322026,1749599460893,-490.0,0.00019561,2]
[365322027,1749599460903,-400.0,0.000196,7]
[365322028,1749599460913,-480.0,0.00019604,2]
[365322029,1749599460922,-265.989115,0.00019624,2]
[365322030,1749599460934,-265.989123,0.00019624,2]
[365322031,1749599460944,-2061.240596,0.00019624,2]
[365322032,1749599460956,-2061.240597,0.00019624,2]
[365322033,1749599460966,-499.115,0.00019679,2]
[365322034,1749599460976,-321.47231,0.00019694,2]
[365322035,1749599460986,-321.47231,0.00019694,2]
[365322036,1749599460997,-151.0,0.00019694,2]
[365322037,1749599461006,-151.0,0.00019694,2]
[365322038,1749599461015,-151.0,0.00019694,2]
[365322039,1749599461024,-2024.153936,0.00019694,2]
[365322040,1749599461035,-2024.153936,0.00019694,2]
[365322041,1749599461045,-215.0738,0.00019699,2]
[365322042,1749599461055,-156.587,0.00019699,2]
[365322043,1749599461064,-400.0,0.000197,7]
[365322044,1749599461073,-217.50445255,0.00019703,2]
[365322045,1749599461083,-490.0,0.00019726,2]
[365322046,1749599461093,-662.48,0.00019726,2]
[365322047,1749599461102,-898.58,0.00019726,2]
[365322048,1749599461111,-1036.73,0.00019726,2]
[365322049,1749599461121,-875.84,0.00019726,2]
[365322050,1749599461130,-1266.74,0.00019726,2]
[365322051,1749599461139,-595.12,0.00019726,2]
[365322052,1749599461149,-490.0,0.00019726,2]
[365322053,1749599461161,-156.587,0.00019726,2]
[365322054,1749599461170,-329.6832115,0.00019753,2]
[365322055,1749599461179,-500.0,0.00019766,2]
[365322056,1749599461190,-1000.0,0.00019769,2]
[365322057,1749599461200,-500.0,0.00019773,2]
[365322058,1749599461209,-151331.2558,0.00019791,2]
[365322059,1749599461219,-151.0,0.00019791,2]
[365322060,1749599461228,-151.0,0.00019791,2]
[365322061,1749599461237,-151.0,0.00019791,2]
[365322062,1749599461247,-151.0,0.00019791,2]
[365322063,1749599461257,-151.0,0.00019791,2]
[365322064,1749599461267,-151.0,0.00019791,2]
[365322065,1749599461276,-151.0,0.00019791,2]
[365322066,1749599461285,-151.0,0.00019791,2]
[365322067,1749599461295,-366.534424,0.00019791,2]
[365322068,1749599461307,-366.534424,0.00019791,2]
[365322069,1749599461317,-151.0,0.00019791,2]
[365322070,1749599461327,-151.0,0.00019791,2]
[365322071,1749599461336,-151.0,0.00019791,2]
[365322072,1749599461346,-151.0,0.00019791,2]
[365322073,1749599461356,-329.233099,0.00019791,2]
[365322074,1749599461366,-329.233099,0.00019791,2]
[365322075,1749599461376,-329.233099,0.00019791,2]
[365322076,1749599461386,-329.233099,0.00019791,2]
[365322077,1749599461396,-321.47231,0.00019791,2]
[365322078,1749599461407,-321.47231,0.00019791,2]
[365322079,1749599461417,-321.47231,0.00019791,2]
[365322080,1749599461427,-321.47231,0.00019791,2]
[365322081,1749599461437,-151.0,0.00019791,2]
[365322082,1749599461446,-151.0,0.00019791,2]
[365322083,1749599461456,-151.0,0.00019791,2]
[365322084,1749599461466,-151.0,0.00019791,2]
[365322085,1749599461476,-151.0,0.00019791,2]
[365322086,1749599461487,-151.0,0.00019791,2]
[365322087,1749599461497,-151.0,0.00019791,2]
[365322088,1749599461506,-151.0,0.00019791,2]
[365322089,1749599461517,-492.491671,0.00019791,2]
[365322090,1749599461527,-492.491671,0.00019791,2]
[365322091,1749599461537,-151.0,0.00019791,2]
[365322092,1749599461547,-151.0,0.00019791,2]
[365322093,1749599461557,-151.0,0.00019791,2]
[365322094,1749599461567,-2024.153936,0.00019791,2]
[365322095,1749599461578,-2024.153936,0.00019791,2]
[365322096,1749599461588,-151.0,0.00019791,2]
[365322097,1749599461599,-2024.153936,0.00019791,2]
[365322098,1749599461775,-2024.153936,0.00019791,2]
[365322099,1749599461784,-212.832839,0.00019791,2]
[365322100,1749599461795,-212.832839,0.00019791,2]
[365322101,1749599461805,-151.0,0.00019791,2]
[365322102,1749599461814,-151.0,0.00019791,2]
[365322103,1749599461824,-154.0486,0.00019791,2]
[365322104,1749599461833,-151.0,0.00019791,2]
[365322105,1749599461843,-3330.0,0.00019795,2]
[365322106,1749599461852,-945.0,0.00019795,2]
[365322107,1749599461862,-155.15,0.00019795,2]
[365322108,1749599461872,-636.0,0.00019795,2]
[365322109,1749599461882,-802.0,0.00019795,2]
[365322110,1749599461891,-1275.0,0.00019795,2]
[365322111,1749599461902,-926.0,0.00019795,2]
[365322112,1749599461913,-558.0,0.00019795,2]
[365322113,1749599461923,-1999.0,0.00019795,2]
[365322114,1749599461934,-589.0,0.00019795,2]
[365322115,1749599461944,-1672.0,0.00019795,2]
[365322116,1749599461958,-883.0,0.00019795,2]
[365322117,1749599461968,-150.0,0.00019795,2]
[365322118,1749599461978,-7064.0,0.00019795,2]
[365322119,1749599461989,-150.0,0.00019795,2]
[365322120,1749599461998,-295.506,0.00019795,2]
[365322121,1749599462009,-4085.0,0.00019795,2]
[365322122,1749599462018,-1000.0,0.00019798,2]
[365322123,1749599462029,-1000.0,0.000198,2]
[365322124,1749599462039,-1000.0,0.000198,2]
[365322125,1749599462048,-1000.0,0.000198,2]
[365322126,1749599462058,-1000.0,0.000198,2]
[365322127,1749599462068,-1000.0,0.000198,2]
[365322128,1749599462078,-600.0,0.000198,7]
[365322129,1749599462088,-1000.0,0.00019823,2]
[365322130,1749599462097,-174.79412009,0.00019858,2]
[365322131,1749599462107,-174.79412008,0.00019866,2]
[365322132,1749599462116,-151.22183532,0.00019872,2]
[365322133,1749599462126,-7149.82175447,0.00019873,2]
[365322134,1749599462136,-5000.0,0.00019873,2]
[365322135,1749599462145,-5000.0,0.00019873,2]
[365322136,1749599462155,-5000.0,0.00019873,2]
[365322137,1749599462165,-5000.0,0.00019873,2]
[365322138,1749599462174,-174.79412008,0.00019875,2]
[365322139,1749599462183,-1000.0,0.00019876,2]
[365322140,1749599462193,-151.22183529,0.00019879,2]
[365322141,1749599462202,-174.79412008,0.00019883,2]
[365322142,1749599462211,-151.22183529,0.00019886,2]
[365322143,1749599462220,-514.89713408,0.0001989,2]
[365322144,1749599462229,-500.0,0.0001989,2]
[365322145,1749599462239,-369.39,0.0001989,2]
[365322146,1749599462248,-662.48,0.0001989,2]
[365322147,1749599462257,-898.58,0.0001989,2]
[365322148,1749599462267,-1036.73,0.0001989,2]
[365322149,1749599462276,-875.84,0.0001989,2]
[365322150,1749599462286,-1266.74,0.0001989,2]
[365322151,1749599462295,-459.42,0.0001989,2]
[365322152,1749599462304,-151.0,0.00019891,2]
[365322153,1749599462314,-151.0,0.00019891,2]
[365322154,1749599462324,-151.0,0.00019891,2]
[365322155,1749599462334,-151.0,0.00019891,2]
[365322156,1749599462345,-151.0,0.00019891,2]
[365322157,1749599462355,-151.143764,0.00019891,2]
[365322158,1749599462365,-151.0,0.00019891,2]
[365322159,1749599462375,-155.755487,0.00019891,2]
[365322160,1749599462384,-155.755487,0.00019891,2]
[365322161,1749599462394,-151.0,0.00019891,2]
[365322162,1749599462406,-151.0,0.00019891,2]
[365322163,1749599462417,-151.0,0.00019891,2]
[365322164,1749599462427,-151.0,0.00019891,2]
[365322165,1749599462437,-169.23907,0.00019891,2]
[365322166,1749599462446,-151.354268,0.00019891,2]
[365322167,1749599462455,-169.23907,0.00019891,2]
[365322168,1749599462465,-151.354268,0.00019891,2]
[365322169,1749599462474,-151.0,0.00019891,2]
[365322170,1749599462483,-151.0,0.00019891,2]
[365322171,1749599462493,-151.0,0.00019891,2]
[365322172,1749599462503,-295.314005,0.00019891,2]
[365322173,1749599462512,-295.314005,0.00019891,2]
[365322174,1749599462522,-151.0,0.00019891,2]
[365322175,1749599462531,-151.0,0.00019891,2]
[365322176,1749599462542,-151.0,0.00019891,2]
[365322177,1749599462552,-151.0,0.00019891,2]
[365322178,1749599462562,-151.0,0.00019891,2]
[365322179,1749599462571,-215.742022,0.00019891,2]
[365322180,1749599462581,-212.832839,0.00019891,2]
[365322181,1749599462590,-212.832839,0.00019891,2]
[365322182,1749599462600,-212.832839,0.00019891,2]
[365322183,1749599462609,-212.832839,0.00019891,2]
[365322184,1749599462619,-151.0,0.00019891,2]
[365322185,1749599462629,-151.215708,0.00019891,2]
[365322186,1749599462639,-4721.6789929,0.00019891,2]
[365322187,1749599462648,-500.0,0.00019891,2]
[365322188,1749599462660,-41334.1085605,0.00019891,2]
[365322189,1749599462669,-1707.3147906,0.00019891,2]
[365322190,1749599462680,-1879.8853225,0.00019891,2]
[365322191,1749599462689,-900.4515678,0.00019891,2]
[365322192,1749599462699,-1525.0582895,0.00019891,2]
[365322193,1749599462708,-500.0,0.00019891,2]
[365322194,1749599462718,-174.79412008,0.00019892,2]
[365322195,1749599462728,-151.22183529,0.00019893,2]
[365322196,1749599462737,-1000.0,0.00019899,2]
[365322197,1749599462747,-1000.0,0.00019899,2]
[365322198,1749599462756,-500.0,0.00019899,2]
[365322199,1749599462766,-150.0,0.00019899,2]
[365322200,1749599462776,-1000.0,0.00019899,2]
[365322201,1749599462786,-3246.3205951,0.000199,2]
[365322202,1749599462795,-151.0,0.000199,2]
[365322203,1749599462805,-3940.83520659,0.000199,2]
[365322204,1749599462814,-5800.0,0.000199,2]
[365322205,1749599462824,-151.0,0.000199,2]
[365322206,1749599462833,-266.177484,0.000199,2]
[365322207,1749599462843,-295.314005,0.000199,2]
[365322208,1749599462853,-295.314005,0.000199,2]
[365322209,1749599462862,-151.0,0.000199,2]
[365322210,1749599462871,-646.512242,0.000199,2]
[365322211,1749599462881,-151.22183529,0.000199,2]
[365322212,1749599462890,-174.79412008,0.000199,2]
[365322213,1749599462899,-151.0,0.000199,2]
[365322214,1749599462910,-151.0,0.000199,2]
[365322215,1749599462919,-151.0,0.000199,2]
[365322216,1749599462929,-151.0,0.000199,2]
[365322217,1749599462939,-151.0,0.000199,2]
[365322218,1749599462949,-151.0,0.000199,2]
[365322219,1749599462964,-151.0,0.000199,2]
[365322220,1749599462974,-151.0,0.000199,2]
[365322221,1749599462984,-151.0,0.000199,2]
[365322222,1749599462993,-1000.0,0.000199,2]
[365322223,1749599463002,-151.0,0.000199,2]
[365322224,1749599463012,-366.534424,0.000199,2]
[365322225,1749599463021,-366.534424,0.000199,2]
[365322226,1749599463031,-259.36218,0.000199,2]
[365322227,1749599463041,-151.0,0.000199,2]
[365322228,1749599463051,-329.233099,0.000199,2]
[365322229,1749599463062,-329.233099,0.000199,2]
[365322230,1749599463072,-321.47231,0.000199,2]
[365322231,1749599463081,-321.47231,0.000199,2]
[365322232,1749599463091,-151.0,0.000199,2]
[365322233,1749599463101,-151.0,0.000199,2]
[365322234,1749599463110,-151.0,0.000199,2]
[365322235,1749599463120,-151.0,0.000199,2]
[365322236,1749599463130,-151.0,0.000199,2]
[365322237,1749599463141,-492.491671,0.000199,2]
[365322238,1749599463151,-492.491671,0.000199,2]
[365322239,1749599463163,-151.0,0.000199,2]
[365322240,1749599463173,-2024.153936,0.000199,2]
[365322241,1749599463183,-2024.153936,0.000199,2]
[365322242,1749599463193,-160.8346859,0.000199,2]
[365322243,1749599463202,-212.832839,0.000199,2]
[365322244,1749599463212,-212.832848,0.000199,2]
[365322245,1749599463222,-151.0,0.000199,2]
[365322246,1749599463231,-5800.0,0.000199,2]
[365322247,1749599463241,-768.0,0.000199,2]
[365322248,1749599463251,-237.0,0.000199,2]
[365322249,1749599463260,-500.0,0.000199,2]
[365322250,1749599463270,-162.00695798,0.000199,2]
[365322251,1749599463279,-339.43015656,0.000199,2]
[365322252,1749599463289,-376.0,0.000199,2]
[365322253,1749599463298,-6591.53297853,0.000199,2]
[365322254,1749599463307,-7353.54359579,0.000199,2]
[365322255,1749599463316,-215.81764343,0.000199,2]
[365322256,1749599463326,-47151.83011286,0.000199,2]
[365322257,1749599463335,-151.0,0.00019905,2]
[365322258,1749599463344,-153.717038,0.00019905,2]
[365322259,1749599463354,-151.0,0.00019905,2]
[365322260,1749599463363,-151.0,0.00019905,2]
[365322261,1749599463373,-151.0,0.00019905,2]
[365322262,1749599463382,-366.534424,0.00019905,2]
[365322263,1749599463391,-366.534424,0.00019905,2]
[365322264,1749599463401,-329.233099,0.00019905,2]
[365322265,1749599463413,-329.233099,0.00019905,2]
[365322266,1749599463422,-321.47231,0.00019905,2]
[365322267,1749599463432,-321.47231,0.00019905,2]
[365322268,1749599463442,-151.0,0.00019905,2]
[365322269,1749599463452,-151.0,0.00019905,2]
[365322270,1749599463463,-151.0,0.00019905,2]
[365322271,1749599463474,-492.491671,0.00019905,2]
[365322272,1749599463485,-492.491671,0.00019905,2]
[365322273,1749599463496,-151.0,0.00019905,2]
[365322274,1749599463506,-2024.153936,0.00019905,2]
[365322275,1749599463517,-2024.153936,0.00019905,2]
[365322276,1749599463528,-151.0,0.00019905,2]
[365322277,1749599463539,-7357.0,0.00019918,2]
[365322278,1749599463549,-500.0,0.00019918,2]
[365322279,1749599463559,-500.0,0.00019918,2]
[365322280,1749599463569,-5023.12370745,0.00019919,2]
[365322281,1749599463579,-151.0,0.00019944,2]
[365322282,1749599463589,-151.0,0.00019944,2]
[365322283,1749599463599,-253.7768,0.00019944,2]
[365322284,1749599463609,-151.0,0.00019944,2]
[365322285,1749599463619,-151.0,0.00019944,2]
[365322286,1749599463629,-155.755487,0.00019944,2]
[365322287,1749599463639,-155.755487,0.00019944,2]
[365322288,1749599463648,-151.0,0.00019944,2]
[365322289,1749599463658,-151.0,0.00019944,2]
[365322290,1749599463668,-151.0,0.00019944,2]
[365322291,1749599463678,-210.859229,0.00019944,2]
[365322292,1749599463688,-169.23907,0.00019944,2]
[365322293,1749599463698,-151.354268,0.00019944,2]
[365322294,1749599463708,-169.23907,0.00019944,2]
[365322295,1749599463718,-151.354268,0.00019944,2]
[365322296,1749599463728,-151.0,0.00019944,2]
[365322297,1749599463738,-151.0,0.00019944,2]
[365322298,1749599463749,-151.0,0.00019944,2]
[365322299,1749599463758,-5312.8808164,0.00019944,2]
[365322300,1749599463768,-46509.5557668,0.00019944,2]
[365322301,1749599463778,-1927.2523279,0.00019944,2]
[365322302,1749599463788,-2022.6886054,0.00019944,2]
[365322303,1749599463798,-966.4193401,0.00019944,2]
[365322304,1749599463807,-1772.7730443,0.00019944,2]
[365322305,1749599463817,-500.0,0.00019945,2]
[365322306,1749599463827,-500.0,0.00019946,2]
[365322307,1749599463837,-496.83702851,0.00019946,2]
[365322308,1749599463847,-500.0,0.00019957,2]
[365322309,1749599463856,-151.0,0.00019958,2]
[365322310,1749599463866,-151.0,0.00019958,2]
[365322311,1749599463876,-151.0,0.00019958,2]
[365322312,1749599463885,-151.0,0.00019958,2]
[365322313,1749599463895,-151.0,0.00019958,2]
[365322314,1749599463906,-151.0,0.00019958,2]
[365322315,1749599463916,-151.0,0.00019958,2]
[365322316,1749599463925,-151.0,0.00019958,2]
[365322317,1749599463936,-151.0,0.00019958,2]
[365322318,1749599463945,-151.0,0.00019958,2]
[365322319,1749599463960,-153.868706,0.00019958,2]
[365322320,1749599463971,-151.0,0.00019958,2]
[365322321,1749599463980,-178.796818,0.00019958,2]
[365322322,1749599463990,-299.436112,0.00019958,2]
[365322323,1749599464000,-178.796818,0.00019958,2]
[365322324,1749599464010,-151.0,0.00019958,2]
[365322325,1749599464021,-1377.641974,0.00019958,2]
[365322326,1749599464033,-1377.641974,0.00019958,2]
[365322327,1749599464044,-151.0,0.00019958,2]
[365322328,1749599464054,-266.177484,0.00019958,2]
[365322329,1749599464064,-295.314005,0.00019958,2]
[365322330,1749599464074,-295.314005,0.00019958,2]
[365322331,1749599464084,-240.033009,0.00019958,2]